Body Name,Body,Service Division,Expense Type,Date Paid,Transaction Ref,Invoice Amount,Supplier Name
Boston Borough Council,http://statistics.data.gov.uk/id/local-authority/32UB,Finance,BBC Payments Account,02/10/2023,30008336,349.33 ,Anglian Water Services Limited
Boston Borough Council,http://statistics.data.gov.uk/id/local-authority/32UB,Leisure,Furniture and Equipment,02/10/2023,30008340,590.46 ,Pulse Fitness LTD
Boston Borough Council,http://statistics.data.gov.uk/id/local-authority/32UB,Operations,Fuel and Oil,02/10/2023,30008337,302.88 ,Fuelcard Services Ltd
Boston Borough Council,http://statistics.data.gov.uk/id/local-authority/32UB,Operations,Fuel and Oil,02/10/2023,30008338,"6,481.82 ",Fuelcard Services Ltd
Boston Borough Council,http://statistics.data.gov.uk/id/local-authority/32UB,Communities,Grants and Contributions to Outside Bodies - No Service Received,03/10/2023,30008001,549.96 ,Clough Building Ltd formerly Brian's Building Services
Boston Borough Council,http://statistics.data.gov.uk/id/local-authority/32UB,Communities,Grants and Contributions to Outside Bodies - No Service Received,03/10/2023,30008160,"4,722.38 ",Lincolnshire Bathrooms And Wetrooms
Boston Borough Council,http://statistics.data.gov.uk/id/local-authority/32UB,Communities,Grants and Contributions to Outside Bodies - No Service Received,03/10/2023,30008162,"5,758.08 ",Westone Housing Ltd
Boston Borough Council,http://statistics.data.gov.uk/id/local-authority/32UB,Communities,Other Miscellaneous Expenses,03/10/2023,30008178,446.43 ,Restore Church Boston
Boston Borough Council,http://statistics.data.gov.uk/id/local-authority/32UB,Leisure,Professional and Contractors Fees,03/10/2023,30008182,"11,840.00 ",Alliance Leisure Services Limited
Boston Borough Council,http://statistics.data.gov.uk/id/local-authority/32UB,Operations,Materials and Consumables,03/10/2023,30008152,750.00 ,Craftwork Engineering and Supplies
Boston Borough Council,http://statistics.data.gov.uk/id/local-authority/32UB,Communities,Bed and Breakfast Accommodation (Homelessness Service),05/10/2023,30008237,256.00 ,AA Properties Boston LTD T/A Tunnard House
Boston Borough Council,http://statistics.data.gov.uk/id/local-authority/32UB,Communities,Bed and Breakfast Accommodation (Homelessness Service),05/10/2023,30008239,326.67 ,Twenty Hotel And Bar (Boston) LTD
Boston Borough Council,http://statistics.data.gov.uk/id/local-authority/32UB,Communities,Grants and Contributions to Outside Bodies - No Service Received,05/10/2023,30008216,"6,620.43 ",Clough Building Ltd formerly Brian's Building Services
Boston Borough Council,http://statistics.data.gov.uk/id/local-authority/32UB,Economic Development,Professional Fees,05/10/2023,30008227,"12,305.28 ",East Midlands Railway EMR
Boston Borough Council,http://statistics.data.gov.uk/id/local-authority/32UB,Leisure,Furniture and Equipment,05/10/2023,30008156,217.00 ,Nerg
Boston Borough Council,http://statistics.data.gov.uk/id/local-authority/32UB,Leisure,Other Miscellaneous Expenses,05/10/2023,30008194,"6,500.00 ",Ingamells Ground-Works and Construction LTD
Boston Borough Council,http://statistics.data.gov.uk/id/local-authority/32UB,Operations,Clothing Uniforms And Laundry,05/10/2023,30007321,548.18 ,Safety Management Sales  (Smi Group)
Boston Borough Council,http://statistics.data.gov.uk/id/local-authority/32UB,Operations,Clothing Uniforms And Laundry,05/10/2023,30007340,220.00 ,Safety Management Sales  (Smi Group)
Boston Borough Council,http://statistics.data.gov.uk/id/local-authority/32UB,Operations,Other Miscellaneous Expenses,05/10/2023,30008180,"19,748.00 ",A and C Weber UK LTD
Boston Borough Council,http://statistics.data.gov.uk/id/local-authority/32UB,Operations,Vehicle Hire,05/10/2023,30008123,680.00 ,Phil Haines Coaches LTD
Boston Borough Council,http://statistics.data.gov.uk/id/local-authority/32UB,Planning,Subscriptions to Organisations and Other Bodies,05/10/2023,30008217,400.00 ,Planning Officer Society
Boston Borough Council,http://statistics.data.gov.uk/id/local-authority/32UB,Strategic Economic Development Projects,Professional and Contractors Fees,05/10/2023,30008193,"2,088.00 ",Park Avenue Recruitment
Boston Borough Council,http://statistics.data.gov.uk/id/local-authority/32UB,Townscape Heritage,Other Miscellaneous Expenses,05/10/2023,30008082,"3,554.93 ",Heritage Trust of Lincolnshire LTD
Boston Borough Council,http://statistics.data.gov.uk/id/local-authority/32UB,Bereavement,Furniture and Equipment,10/10/2023,30008236,622.99 ,Pace Fuelcare
Boston Borough Council,http://statistics.data.gov.uk/id/local-authority/32UB,Bereavement,Professional and Contractors Fees,10/10/2023,30008214,999.00 ,�Personal Information Redacted�
Boston Borough Council,http://statistics.data.gov.uk/id/local-authority/32UB,Communities,Bed and Breakfast Accommodation (Homelessness Service),10/10/2023,30008312,"1,493.28 ",Twenty Hotel And Bar (Boston) LTD
Boston Borough Council,http://statistics.data.gov.uk/id/local-authority/32UB,Communities,Grants and Contributions to Outside Bodies - No Service Received,10/10/2023,30008275,"1,620.00 ",�Personal Information Redacted�
Boston Borough Council,http://statistics.data.gov.uk/id/local-authority/32UB,Communities,Grants and Contributions to Outside Bodies - No Service Received,10/10/2023,30008310,"4,777.26 ",Brothertoft Build LTD
Boston Borough Council,http://statistics.data.gov.uk/id/local-authority/32UB,Communities,Grants and Contributions to Outside Bodies - No Service Received,10/10/2023,30008311,"8,966.00 ",Warics LTD
Boston Borough Council,http://statistics.data.gov.uk/id/local-authority/32UB,Communities,Staff Training Expenses (Non-Payroll),10/10/2023,30008289,210.00 ,Astral PS Limited
Boston Borough Council,http://statistics.data.gov.uk/id/local-authority/32UB,Economic Development,Professional and Contractors Fees,10/10/2023,30008278,"12,046.29 ",AA Properties Boston LTD T/A Tunnard House
Boston Borough Council,http://statistics.data.gov.uk/id/local-authority/32UB,Economic Development,Professional Fees,10/10/2023,30008276,"150,060.02 ",University of Lincoln
Boston Borough Council,http://statistics.data.gov.uk/id/local-authority/32UB,Human Resources,Other Employee Expenses (Non-Payroll),10/10/2023,30007689,"4,155.28 ",Public Sector Partnership Services LTD
Boston Borough Council,http://statistics.data.gov.uk/id/local-authority/32UB,Information Technology,Telephone and Mobiles,10/10/2023,30008154,463.62 ,Vodafone LTD (Corporate)
Boston Borough Council,http://statistics.data.gov.uk/id/local-authority/32UB,Land Charges & Licencing,Professional and Contractors Fees,10/10/2023,30008062,"1,209.99 ",Lincolnshire County Council
Boston Borough Council,http://statistics.data.gov.uk/id/local-authority/32UB,Operations,Maintenance,10/10/2023,30008139,232.59 ,Chris Sellars Groundcare LTD
Boston Borough Council,http://statistics.data.gov.uk/id/local-authority/32UB,Operations,Maintenance,10/10/2023,30008140,338.07 ,Chris Sellars Groundcare LTD
Boston Borough Council,http://statistics.data.gov.uk/id/local-authority/32UB,Operations,Materials and Consumables,10/10/2023,30008121,"4,035.23 ",Mainstream Fisheries LTD
Boston Borough Council,http://statistics.data.gov.uk/id/local-authority/32UB,Planning,Works to Buildings (Main Contractor),10/10/2023,30008308,"451,235.00 ",Lincolnshire YMCA LTD
Boston Borough Council,http://statistics.data.gov.uk/id/local-authority/32UB,Property Services,Buildings Maintenance - Programmed,10/10/2023,30008080,350.00 ,Eon UK Energy Services
Boston Borough Council,http://statistics.data.gov.uk/id/local-authority/32UB,Property Services,Buildings Maintenance - Programmed,10/10/2023,30008093,580.00 ,SG Services (Boston) LTD
Boston Borough Council,http://statistics.data.gov.uk/id/local-authority/32UB,Property Services,Buildings Maintenance - Programmed,10/10/2023,30008097,760.00 ,SG Services (Boston) LTD
Boston Borough Council,http://statistics.data.gov.uk/id/local-authority/32UB,Property Services,Buildings Maintenance - Programmed,10/10/2023,30008106,"1,580.00 ",SG Services (Boston) LTD
Boston Borough Council,http://statistics.data.gov.uk/id/local-authority/32UB,Property Services,Buildings Maintenance - Programmed,10/10/2023,30008114,219.15 ,Princebuild LTD
Boston Borough Council,http://statistics.data.gov.uk/id/local-authority/32UB,Property Services,Buildings Maintenance - Programmed,10/10/2023,30008132,217.35 ,Healthguard LTD
Boston Borough Council,http://statistics.data.gov.uk/id/local-authority/32UB,Property Services,Buildings Maintenance - Programmed,10/10/2023,30008134,552.00 ,Lincolnshire Roller Shutters
Boston Borough Council,http://statistics.data.gov.uk/id/local-authority/32UB,Property Services,Buildings Maintenance - Programmed,10/10/2023,30008136,583.65 ,Glen Farrow UK LTD
Boston Borough Council,http://statistics.data.gov.uk/id/local-authority/32UB,Property Services,Buildings Maintenance - Programmed,10/10/2023,30008137,210.00 ,Lincolnshire Roller Shutters
Boston Borough Council,http://statistics.data.gov.uk/id/local-authority/32UB,Property Services,Buildings Maintenance - Programmed,10/10/2023,30008163,271.00 ,GB Security Group
Boston Borough Council,http://statistics.data.gov.uk/id/local-authority/32UB,Property Services,Buildings Maintenance - Programmed,10/10/2023,30008172,"1,446.10 ",Heritage Trust of Lincolnshire LTD
Boston Borough Council,http://statistics.data.gov.uk/id/local-authority/32UB,Strategic Growth & Development,Grants and Contributions to Outside Bodies - No Service Received,10/10/2023,30008210,"27,000.00 ",BEAM UP Ltd
Boston Borough Council,http://statistics.data.gov.uk/id/local-authority/32UB,BTAC,Grants and Contributions to Outside Bodies - No Service Received,12/10/2023,30008224,500.00 ,Centrepoint Outreach
Boston Borough Council,http://statistics.data.gov.uk/id/local-authority/32UB,BTAC,Grants and Contributions to Outside Bodies - No Service Received,12/10/2023,30008226,"1,000.00 ",Citizens Advice Mid Lincolnshire
Boston Borough Council,http://statistics.data.gov.uk/id/local-authority/32UB,Communities,Bed and Breakfast Accommodation (Homelessness Service),12/10/2023,30008357,256.00 ,Smart Move (Boston) LTD
Boston Borough Council,http://statistics.data.gov.uk/id/local-authority/32UB,Communities,Bed and Breakfast Accommodation (Homelessness Service),12/10/2023,30008358,"1,302.00 ",The Lord Grey Hotel t/a The Lord Grey Ltd
Boston Borough Council,http://statistics.data.gov.uk/id/local-authority/32UB,Economic Development,Professional and Contractors Fees,12/10/2023,30008234,"5,752.39 ",South Holland District Council
Boston Borough Council,http://statistics.data.gov.uk/id/local-authority/32UB,Finance,Public Sector Partnership Services,12/10/2023,30008228,"247,830.00 ",Public Sector Partnership Services LTD
Boston Borough Council,http://statistics.data.gov.uk/id/local-authority/32UB,Operations,Agency Staff,12/10/2023,30008230,"7,808.49 ",Comensura LTD
Boston Borough Council,http://statistics.data.gov.uk/id/local-authority/32UB,Operations,Tyres,12/10/2023,30007412,"2,856.07 ",BA Bush and Son LTD
Boston Borough Council,http://statistics.data.gov.uk/id/local-authority/32UB,Operations,Tyres,12/10/2023,30007636,"2,856.07 ",BA Bush and Son LTD
Boston Borough Council,http://statistics.data.gov.uk/id/local-authority/32UB,Operations,Vehicle Hire,12/10/2023,30008218,680.00 ,Phil Haines Coaches LTD
Boston Borough Council,http://statistics.data.gov.uk/id/local-authority/32UB,Operations,Vehicle Hire,12/10/2023,30008219,960.00 ,Phil Haines Coaches LTD
Boston Borough Council,http://statistics.data.gov.uk/id/local-authority/32UB,Operations,Vehicle Hire,12/10/2023,30008220,680.00 ,Phil Haines Coaches LTD
Boston Borough Council,http://statistics.data.gov.uk/id/local-authority/32UB,Operations,Vehicle Hire,12/10/2023,30008221,400.00 ,Phil Haines Coaches LTD
Boston Borough Council,http://statistics.data.gov.uk/id/local-authority/32UB,Strategic Economic Development Projects,Professional and Contractors Fees,12/10/2023,30008355,"3,575.00 ",The Engaging People Company
Boston Borough Council,http://statistics.data.gov.uk/id/local-authority/32UB,BTAC,Performers and Entertainers Fees,17/10/2023,30008314,290.00 ,Sams House
Boston Borough Council,http://statistics.data.gov.uk/id/local-authority/32UB,BTAC,Performers and Entertainers Fees,17/10/2023,30008416,"3,000.00 ",University of Lincoln
Boston Borough Council,http://statistics.data.gov.uk/id/local-authority/32UB,Communities,Computer Software Purchase,17/10/2023,30008350,"10,894.55 ",Housing Partners Ltd
Boston Borough Council,http://statistics.data.gov.uk/id/local-authority/32UB,Communities,Computer Software Purchase,17/10/2023,30008351,"9,995.00 ",Housing Partners Ltd
Boston Borough Council,http://statistics.data.gov.uk/id/local-authority/32UB,Communities,Grants and Contributions to Outside Bodies - No Service Received,17/10/2023,30008379,"9,188.72 ",Brothertoft Build LTD
Boston Borough Council,http://statistics.data.gov.uk/id/local-authority/32UB,Communities,Grants and Contributions to Outside Bodies - No Service Received,17/10/2023,30008380,"4,603.94 ",Sibjon Builders
Boston Borough Council,http://statistics.data.gov.uk/id/local-authority/32UB,Communities,Grants and Contributions to Outside Bodies - No Service Received,17/10/2023,30008381,"25,000.00 ",Lincolnshire Community Foundation
Boston Borough Council,http://statistics.data.gov.uk/id/local-authority/32UB,Communities,Professional Fees,17/10/2023,30008306,561.50 ,Longstaff Chartered Surveyors
Boston Borough Council,http://statistics.data.gov.uk/id/local-authority/32UB,Corporate,Purchase of Hardware,17/10/2023,30008315,"6,957.30 ",Public Sector Partnership Services LTD
Boston Borough Council,http://statistics.data.gov.uk/id/local-authority/32UB,Human Resources,Employee Related Schemes (Non-Payroll),17/10/2023,30007987,515.50 ,Terryberry Ltd
Boston Borough Council,http://statistics.data.gov.uk/id/local-authority/32UB,Information Technology,Purchase of Hardware,17/10/2023,30008315,"6,957.30 ",Public Sector Partnership Services LTD
Boston Borough Council,http://statistics.data.gov.uk/id/local-authority/32UB,Information Technology,Telephone and Mobiles,17/10/2023,30008323,"4,321.50 ",Public Sector Partnership Services LTD
Boston Borough Council,http://statistics.data.gov.uk/id/local-authority/32UB,Leisure,Furniture and Equipment,17/10/2023,30008364,"1,235.06 ",Nerg
Boston Borough Council,http://statistics.data.gov.uk/id/local-authority/32UB,Operations,Fuel and Oil,17/10/2023,30008128,"1,320.55 ",Pace Fuelcare
Boston Borough Council,http://statistics.data.gov.uk/id/local-authority/32UB,Operations,Furniture and Equipment,17/10/2023,30007089,281.67 ,Portable offices (Hire) LTD
Boston Borough Council,http://statistics.data.gov.uk/id/local-authority/32UB,Operations,Maintenance,17/10/2023,30007743,288.54 ,Specialist Fleet Services LTD
Boston Borough Council,http://statistics.data.gov.uk/id/local-authority/32UB,Planning,Works to Buildings (Main Contractor),17/10/2023,30008321,"260,958.75 ",Lincolnshire YMCA LTD
Boston Borough Council,http://statistics.data.gov.uk/id/local-authority/32UB,Strategic Economic Development Projects,Legal Fees,17/10/2023,30008303,452.20 ,Freeths LLP
Boston Borough Council,http://statistics.data.gov.uk/id/local-authority/32UB,Strategic Growth & Development,Grants and Contributions to Outside Bodies - No Service Received,17/10/2023,30008392,"3,500.00 ",Boston Community Transport Ltd
Boston Borough Council,http://statistics.data.gov.uk/id/local-authority/32UB,Business Transformation,Postages,19/10/2023,30008385,457.85 ,Royal Mail
Boston Borough Council,http://statistics.data.gov.uk/id/local-authority/32UB,Communities,Grants and Contributions to Outside Bodies - No Service Received,19/10/2023,30008376,"32,500.00 ",Citizens Advice Mid Lincolnshire
Boston Borough Council,http://statistics.data.gov.uk/id/local-authority/32UB,Economic Development,Professional and Contractors Fees,19/10/2023,30008353,"2,794.15 ",Lincolnshire County Council
Boston Borough Council,http://statistics.data.gov.uk/id/local-authority/32UB,Land Charges & Licencing,Professional and Contractors Fees,19/10/2023,30007532,9.00 ,Lincolnshire County Council
Boston Borough Council,http://statistics.data.gov.uk/id/local-authority/32UB,Legal Services,Legal Fees,19/10/2023,30007532,"7,244.36 ",Lincolnshire County Council
Boston Borough Council,http://statistics.data.gov.uk/id/local-authority/32UB,Leisure,Furniture and Equipment,19/10/2023,30008404,"1,016.24 ",Nerg
Boston Borough Council,http://statistics.data.gov.uk/id/local-authority/32UB,Operations,Maintenance,19/10/2023,30007364,451.95 ,Specialist Fleet Services LTD
Boston Borough Council,http://statistics.data.gov.uk/id/local-authority/32UB,Operations,Materials and Consumables,19/10/2023,30008135,"4,765.00 ",BM Arboriculture & Garden Care
Boston Borough Council,http://statistics.data.gov.uk/id/local-authority/32UB,Operations,Other Private Contractors,19/10/2023,30008207,"6,436.25 ",LA Support LTD
Boston Borough Council,http://statistics.data.gov.uk/id/local-authority/32UB,Operations,Other Private Contractors,19/10/2023,30008208,"6,688.00 ",LA Support LTD
Boston Borough Council,http://statistics.data.gov.uk/id/local-authority/32UB,Operations,Other Private Contractors,19/10/2023,30008209,"6,992.00 ",LA Support LTD
Boston Borough Council,http://statistics.data.gov.uk/id/local-authority/32UB,Property Services,Materials and Consumables,19/10/2023,30008391,598.00 ,Parking and Secure Documents
Boston Borough Council,http://statistics.data.gov.uk/id/local-authority/32UB,Strategic Economic Development Projects,Professional and Contractors Fees,19/10/2023,30008138,"1,250.00 ",BWB Consulting Ltd
Boston Borough Council,http://statistics.data.gov.uk/id/local-authority/32UB,Strategic Economic Development Projects,Professional and Contractors Fees,19/10/2023,30008428,"2,349.00 ",Park Avenue Recruitment
Boston Borough Council,http://statistics.data.gov.uk/id/local-authority/32UB,Strategic Economic Development Projects,Professional and Contractors Fees,19/10/2023,30008429,"2,088.00 ",Park Avenue Recruitment
Boston Borough Council,http://statistics.data.gov.uk/id/local-authority/32UB,Bereavement,Gas,20/10/2023,30008553,"5,705.81 ",Espo Gas and Electricity
Boston Borough Council,http://statistics.data.gov.uk/id/local-authority/32UB,Finance,Electricity,20/10/2023,30008551,"47,122.31 ",TotalEnergies
Boston Borough Council,http://statistics.data.gov.uk/id/local-authority/32UB,Heritage,Gas,20/10/2023,30008556,630.76 ,Espo Gas and Electricity
Boston Borough Council,http://statistics.data.gov.uk/id/local-authority/32UB,Land Charges & Licencing,Professional and Contractors Fees,20/10/2023,30008550,"1,634.00 ",Disclosure and Barring Service
Boston Borough Council,http://statistics.data.gov.uk/id/local-authority/32UB,Leisure,Gas,20/10/2023,30008558,"5,037.00 ",Espo Gas and Electricity
Boston Borough Council,http://statistics.data.gov.uk/id/local-authority/32UB,Operations,Fuel and Oil,20/10/2023,30008539,"6,189.52 ",Fuelcard Services Ltd
Boston Borough Council,http://statistics.data.gov.uk/id/local-authority/32UB,Operations,Fuel and Oil,20/10/2023,30008540,"5,844.43 ",Fuelcard Services Ltd
Boston Borough Council,http://statistics.data.gov.uk/id/local-authority/32UB,Operations,Fuel and Oil,20/10/2023,30008541,694.05 ,Fuelcard Services Ltd
Boston Borough Council,http://statistics.data.gov.uk/id/local-authority/32UB,Property Services,Gas,20/10/2023,30008557,842.74 ,Espo Gas and Electricity
Boston Borough Council,http://statistics.data.gov.uk/id/local-authority/32UB,Bereavement,Internet Broadband Payments,24/10/2023,30008157,52.43 ,Multidata LTD
Boston Borough Council,http://statistics.data.gov.uk/id/local-authority/32UB,Bereavement,Purchase Of Goods For Resale,24/10/2023,30008186,327.00 ,The Yaboo Co LTD (Wesley Media)
Boston Borough Council,http://statistics.data.gov.uk/id/local-authority/32UB,Bereavement,Purchase Of Goods For Resale,24/10/2023,30008188,252.00 ,The Yaboo Co LTD (Wesley Media)
Boston Borough Council,http://statistics.data.gov.uk/id/local-authority/32UB,Communities,Bed and Breakfast Accommodation (Homelessness Service),24/10/2023,30008440,448.00 ,AA Properties Boston LTD T/A Tunnard House
Boston Borough Council,http://statistics.data.gov.uk/id/local-authority/32UB,Communities,Bed and Breakfast Accommodation (Homelessness Service),24/10/2023,30008444,"1,260.00 ",The Lord Grey Hotel t/a The Lord Grey Ltd
Boston Borough Council,http://statistics.data.gov.uk/id/local-authority/32UB,Communities,Bed and Breakfast Accommodation (Homelessness Service),24/10/2023,30008446,420.00 ,The Lord Grey Hotel t/a The Lord Grey Ltd
Boston Borough Council,http://statistics.data.gov.uk/id/local-authority/32UB,Communities,Grants and Contributions to Outside Bodies - No Service Received,24/10/2023,30008443,312.00 ,R A Joinery
Boston Borough Council,http://statistics.data.gov.uk/id/local-authority/32UB,Communities,Other Miscellaneous Expenses,24/10/2023,30008225,301.44 ,thebigword
Boston Borough Council,http://statistics.data.gov.uk/id/local-authority/32UB,Communities,Professional Fees,24/10/2023,30008238,"3,254.00 ",Capsticks Solicitors LLP
Boston Borough Council,http://statistics.data.gov.uk/id/local-authority/32UB,Communities,Professional Fees,24/10/2023,30008307,"3,365.00 ",Focus Consultants 2010 LLP
Boston Borough Council,http://statistics.data.gov.uk/id/local-authority/32UB,Economic Development,Professional and Contractors Fees,24/10/2023,30008421,"25,372.35 ",Community Ventures
Boston Borough Council,http://statistics.data.gov.uk/id/local-authority/32UB,Finance,Professional and Contractors Fees,24/10/2023,30008246,425.36 ,Data Shredders LTD
Boston Borough Council,http://statistics.data.gov.uk/id/local-authority/32UB,Finance,Un-coded Invoices Suspense Account,24/10/2023,30008186,21.00 ,The Yaboo Co LTD (Wesley Media)
Boston Borough Council,http://statistics.data.gov.uk/id/local-authority/32UB,Heritage,Internet Broadband Payments,24/10/2023,30008157,112.26 ,Multidata LTD
Boston Borough Council,http://statistics.data.gov.uk/id/local-authority/32UB,Information Technology,Computer Hardware Maintenance,24/10/2023,30008195,753.00 ,One Source IT LTD
Boston Borough Council,http://statistics.data.gov.uk/id/local-authority/32UB,Information Technology,Computer Software Licence Costs,24/10/2023,30008146,"3,859.10 ",Phoenix Software LTD
Boston Borough Council,http://statistics.data.gov.uk/id/local-authority/32UB,Leisure,Internet Broadband Payments,24/10/2023,30008157,368.00 ,Multidata LTD
Boston Borough Council,http://statistics.data.gov.uk/id/local-authority/32UB,Leisure,Professional and Contractors Fees,24/10/2023,30008352,"3,204.00 ",Sharpe Pritchard LLP
Boston Borough Council,http://statistics.data.gov.uk/id/local-authority/32UB,Operations,Furniture and Equipment,24/10/2023,30008229,281.67 ,Portable offices (Hire) LTD
Boston Borough Council,http://statistics.data.gov.uk/id/local-authority/32UB,Operations,Maintenance,24/10/2023,30007983,293.25 ,Specialist Fleet Services LTD
Boston Borough Council,http://statistics.data.gov.uk/id/local-authority/32UB,Operations,Maintenance,24/10/2023,30008141,359.66 ,Chris Sellars Groundcare LTD
Boston Borough Council,http://statistics.data.gov.uk/id/local-authority/32UB,Operations,Maintenance,24/10/2023,30008413,250.00 ,Chris Sellars Groundcare LTD
Boston Borough Council,http://statistics.data.gov.uk/id/local-authority/32UB,Operations,Vehicle Hire,24/10/2023,30008145,"4,620.00 ",SFS t/a Collett Transport Services
Boston Borough Council,http://statistics.data.gov.uk/id/local-authority/32UB,Planning,Professional and Contractors Fees,24/10/2023,30008356,"1,759.00 ",Freeths LLP
Boston Borough Council,http://statistics.data.gov.uk/id/local-authority/32UB,Property Services,Buildings Maintenance - Programmed,24/10/2023,30008241,252.60 ,Periam and Williamson Ltd
Boston Borough Council,http://statistics.data.gov.uk/id/local-authority/32UB,Property Services,Fees and Charges General,24/10/2023,30008382,"4,242.50 ",Savoy Cinemas LTD
Boston Borough Council,http://statistics.data.gov.uk/id/local-authority/32UB,Property Services,Other Private Contractors,24/10/2023,30008383,"1,308.29 ",Kings Armoured Security Services LTD
Boston Borough Council,http://statistics.data.gov.uk/id/local-authority/32UB,Property Services,Professional and Contractors Fees,24/10/2023,30008299,510.25 ,Chipside LTD
Boston Borough Council,http://statistics.data.gov.uk/id/local-authority/32UB,Property Services,Professional and Contractors Fees,24/10/2023,30008377,"1,941.50 ",Freeths LLP
Boston Borough Council,http://statistics.data.gov.uk/id/local-authority/32UB,Strategic Growth & Development,Grants and Contributions to Outside Bodies - No Service Received,24/10/2023,30008460,"8,000.00 ",NBV Enterprise Solutions Limited
Boston Borough Council,http://statistics.data.gov.uk/id/local-authority/32UB,Business Transformation,Postages,26/10/2023,30008389,897.56 ,Royal Mail
Boston Borough Council,http://statistics.data.gov.uk/id/local-authority/32UB,Communities,Grants and Contributions to Outside Bodies - No Service Received,26/10/2023,30008435,"5,000.00 ",The Parish of Boston
Boston Borough Council,http://statistics.data.gov.uk/id/local-authority/32UB,Communities,Other Miscellaneous Expenses,26/10/2023,30008439,290.31 ,Boston Borough Council
Boston Borough Council,http://statistics.data.gov.uk/id/local-authority/32UB,Corporate,Purchase of Hardware,26/10/2023,30008390,"9,175.00 ",Vodafone LTD (Corporate)
Boston Borough Council,http://statistics.data.gov.uk/id/local-authority/32UB,"Democratic, Civic & Electoral Services",Professional and Contractors Fees,26/10/2023,30008175,539.00 ,Chase Services Group
Boston Borough Council,http://statistics.data.gov.uk/id/local-authority/32UB,Economic Development,Replacement Handset,26/10/2023,30008390,389.00 ,Vodafone LTD (Corporate)
Boston Borough Council,http://statistics.data.gov.uk/id/local-authority/32UB,Environmental Health,Professional and Contractors Fees,26/10/2023,30008483,"1,120.83 ",Pestinator UK LTD
Boston Borough Council,http://statistics.data.gov.uk/id/local-authority/32UB,Information Technology,Other Communication Costs,26/10/2023,30008231,"8,567.80 ",EMPSN Services Limited
Boston Borough Council,http://statistics.data.gov.uk/id/local-authority/32UB,Information Technology,Purchase of Hardware,26/10/2023,30008390,"9,175.00 ",Vodafone LTD (Corporate)
Boston Borough Council,http://statistics.data.gov.uk/id/local-authority/32UB,Land Charges & Licencing,Other Miscellaneous Expenses,26/10/2023,30008469,"1,010.90 ",New Auto LTD T/A Mogo UK
Boston Borough Council,http://statistics.data.gov.uk/id/local-authority/32UB,Legal Services,Legal Fees,26/10/2023,30008022,"5,304.48 ",Lincolnshire County Council
Boston Borough Council,http://statistics.data.gov.uk/id/local-authority/32UB,Legal Services,Postages,26/10/2023,30007336,"6,412.67 ",Lincolnshire County Council
Boston Borough Council,http://statistics.data.gov.uk/id/local-authority/32UB,Operations,Materials and Consumables,26/10/2023,30008426,464.00 ,Cheer's Nurseries LTD
Boston Borough Council,http://statistics.data.gov.uk/id/local-authority/32UB,Operations,Tyres,26/10/2023,30008453,"2,856.07 ",BA Bush and Son LTD
Boston Borough Council,http://statistics.data.gov.uk/id/local-authority/32UB,Property Services,Agency Staff,26/10/2023,30008173,"1,336.12 ",Chase Services Group
Boston Borough Council,http://statistics.data.gov.uk/id/local-authority/32UB,Property Services,Agency Staff,26/10/2023,30008174,"6,537.98 ",Chase Services Group
Boston Borough Council,http://statistics.data.gov.uk/id/local-authority/32UB,Property Services,Buildings Maintenance - Programmed,26/10/2023,30008371,260.90 ,Periam and Williamson Ltd
Boston Borough Council,http://statistics.data.gov.uk/id/local-authority/32UB,Strategic Economic Development Projects,Professional and Contractors Fees,26/10/2023,30008462,630.00 ,Marrons Planning
Boston Borough Council,http://statistics.data.gov.uk/id/local-authority/32UB,BTAC,Advertising - Events,31/10/2023,30008468,240.00 ,Chilli Media and Publishing LTD
Boston Borough Council,http://statistics.data.gov.uk/id/local-authority/32UB,Communities,Bed and Breakfast Accommodation (Homelessness Service),31/10/2023,30008455,448.00 ,AA Properties Boston LTD T/A Tunnard House
Boston Borough Council,http://statistics.data.gov.uk/id/local-authority/32UB,Communities,Grants and Contributions to Outside Bodies - No Service Received,31/10/2023,30008436,"1,500.00 ",Swineshead Methodist Church
Boston Borough Council,http://statistics.data.gov.uk/id/local-authority/32UB,Communities,Grants and Contributions to Outside Bodies - No Service Received,31/10/2023,30008461,"1,240.00 ",Enable Access
Boston Borough Council,http://statistics.data.gov.uk/id/local-authority/32UB,Communities,Other Private Contractors,31/10/2023,30008235,750.00 ,Doddington Farms LLP
Boston Borough Council,http://statistics.data.gov.uk/id/local-authority/32UB,Corporate,Purchase of Hardware,31/10/2023,30008288,"11,492.00 ",Tangible Benefit
Boston Borough Council,http://statistics.data.gov.uk/id/local-authority/32UB,Finance,Professional and Contractors Fees,31/10/2023,30008528,215.00 ,Lincolnshire County Council Pension Fund
Boston Borough Council,http://statistics.data.gov.uk/id/local-authority/32UB,Information Technology,Purchase of Hardware,31/10/2023,30008288,"11,492.00 ",Tangible Benefit
Boston Borough Council,http://statistics.data.gov.uk/id/local-authority/32UB,Leisure,Cleaning Contract,31/10/2023,30008368,668.52 ,Phs Group PLC
Boston Borough Council,http://statistics.data.gov.uk/id/local-authority/32UB,Leisure,Equipment Lease Payments (More than 12 months),31/10/2023,30008248,292.50 ,NVCS LTD
Boston Borough Council,http://statistics.data.gov.uk/id/local-authority/32UB,Operations,Maintenance,31/10/2023,30008327,554.34 ,Specialist Fleet Services LTD
Boston Borough Council,http://statistics.data.gov.uk/id/local-authority/32UB,Operations,Maintenance,31/10/2023,30008329,492.07 ,Specialist Fleet Services LTD
Boston Borough Council,http://statistics.data.gov.uk/id/local-authority/32UB,Operations,Maintenance,31/10/2023,30008330,"1,214.54 ",Specialist Fleet Services LTD
Boston Borough Council,http://statistics.data.gov.uk/id/local-authority/32UB,Operations,Maintenance,31/10/2023,30008476,"6,570.00 ",Peter Smith Commercials LTD
Boston Borough Council,http://statistics.data.gov.uk/id/local-authority/32UB,Planning,Other Private Contractors,31/10/2023,30008523,"15,683.71 ",Heritage Trust of Lincolnshire LTD
Boston Borough Council,http://statistics.data.gov.uk/id/local-authority/32UB,Property Services,Buildings Maintenance - Programmed,31/10/2023,30008249,433.49 ,Adcock Refrigeration and Air Conditioning LTD
Boston Borough Council,http://statistics.data.gov.uk/id/local-authority/32UB,Property Services,Buildings Maintenance - Programmed,31/10/2023,30008302,490.00 ,Adcock Refrigeration and Air Conditioning LTD
Boston Borough Council,http://statistics.data.gov.uk/id/local-authority/32UB,Property Services,Buildings Maintenance - Programmed,31/10/2023,30008305,445.00 ,Adcock Refrigeration and Air Conditioning LTD
